bitfinex-derivatives/quotes_ETHF0:USTF0_20250520
["timestamp","ask_amount","ask_price","bid_price","bid_amount"]
[1747765282315,0.80295,2489.8,2489.7,0.32114288]
[1747765282806,0.80295,2489.8,2489.6,3.2078]
[1747765282807,19.770235,2489.8,2489.2,3.2078]
[1747765283007,3.2078,2489.5,2488.5,4.7e-07]
[1747765283219,4.01114,2488.6,2488.5,4.7e-07]
[1747765283403,0.80347,2488.2,2488.1,9.64e-06]
[1747765283726,4.01127,2488.2,2488.1,9.64e-06]
[1747765283913,6.020795,2488.2,2488.1,9.64e-06]
[1747765284102,0.80363,2487.7,2487.6,1.46427605]
[1747765284305,0.80389,2486.9,2486.8,3.29492449]
[1747765284503,3.2078,2486.9,2486.8,3.29492449]
[1747765284709,3.2078,2486.9,2486.8,10.30549949]
[1747765285013,4.01169,2486.9,2486.8,3.29492449]
[1747765285215,18.78826501,2486.9,2486.8,3.29492449]
[1747765285408,17.98437501,2486.9,2486.8,3.29492449]
[1747765285609,18.78826501,2486.9,2486.8,3.29492449]
[1747765285914,6.02226501,2486.9,2486.8,3.29492449]
[1747765286112,18.78826501,2486.9,2486.8,3.29492449]
[1747765286909,40.80602918,2487.1,2487.0,0.80385]
[1747765287222,3.2078,2488.1,2487.1,2.00956]
[1747765287406,3.2078,2488.1,2487.3,3.2078]
[1747765287606,4.01141,2487.8,2487.3,0.80374]
[1747765287811,0.80369,2487.5,2487.0,3.2078]
[1747765288115,0.00602918,2487.5,2487.0,3.21382918]
[1747765288315,0.00602918,2487.5,2487.3,0.80374]
[1747765288511,0.00602918,2487.5,2487.0,5.22407918]
[1747765288512,0.00602918,2487.5,2487.4,0.80372]
[1747765288817,0.00602918,2487.5,2487.1,0.8038]
[1747765289023,0.00602918,2487.5,2487.2,0.80377]
[1747765289219,0.80382,2487.1,2487.0,0.00602918]
[1747765289412,4.01162,2487.1,2487.0,0.00602918]
[1747765289608,0.80378,2487.3,2487.0,0.00602918]
[1747765289807,0.80382,2487.1,2487.0,0.00602918]
[1747765290009,3.2078,2487.2,2487.0,0.00602918]
[1747765290216,3.21382918,2487.5,2487.1,3.2078]
[1747765290416,3.21382918,2487.5,2487.4,0.80372]
[1747765290620,0.00602918,2487.5,2487.4,0.80372]
[1747765290923,0.00602918,2487.5,2487.4,2.81381]
[1747765291123,0.00602918,2487.5,2487.4,2.01009]
[1747765291424,3.2078,2488.3,2487.4,10.21789]
[1747765291613,3.2078,2488.3,2488.2,0.80347]
[1747765291818,46.01598,2488.9,2488.0,3.2078]
[1747765292022,3.2078,2488.6,2488.0,3.2078]
[1747765292219,3.2078,2488.6,2488.1,0.80347]
[1747765292524,0.80341,2488.4,2488.1,0.80950918]
[1747765292714,3.21382918,2488.6,2488.1,2.01547418]
[1747765293020,0.80347,2488.2,2488.1,0.00602918]
[1747765293213,0.80347,2488.2,2488.0,3.2078]
[1747765293214,0.80371,2487.5,2487.3,13.412]
[1747765293413,2.00875,2488.1,2487.3,13.412]
[1747765293414,3.2078,2487.8,2487.3,0.80374]
[1747765293619,5.21655,2488.1,2487.3,0.80374]
[1747765293813,3.2078,2488.1,2487.2,3.2078]
[1747765294016,3.2078,2488.1,2487.5,3.2078]
[1747765294212,3.2078,2488.4,2488.1,0.80349]
[1747765294412,3.2078,2488.4,2487.7,16.6198]
[1747765294612,3.2078,2488.4,2487.8,3.2078]
[1747765294820,0.80346,2488.3,2488.0,0.80353]
[1747765295116,0.80356,2488.0,2487.7,0.80362]
[1747765295320,5.21636,2488.4,2487.6,0.00602918]
[1747765295321,2.00859,2488.3,2487.6,0.00602918]
[1747765295519,0.80363,2487.7,2487.6,0.00602918]
[1747765295715,3.2078,2488.1,2487.6,0.80967918]
[1747765295929,0.80356,2487.9,2487.7,0.80361]
[1747765296125,3.2078,2488.1,2487.6,0.00602918]
[1747765296418,0.80369,2487.5,2487.4,0.08486477]
[1747765296816,0.80369,2487.5,2487.4,4.77e-06]
[1747765296817,11.02158,2487.5,2487.4,4.77e-06]
[1747765297426,6.02158,2487.5,2487.4,4.77e-06]
[1747765297725,46.82158,2487.5,2487.4,4.77e-06]
[1747765297927,60.23558,2487.5,2487.4,4.77e-06]
[1747765298121,46.82158,2487.5,2487.4,2.01009477]
[1747765298323,3.2078,2487.5,2487.4,2.81381477]
[1747765298526,3.2078,2488.1,2487.6,0.80365]
[1747765298824,44.0078,2488.1,2487.5,0.80367]
[1747765299024,0.80353,2488.0,2487.7,0.80362]
[1747765299327,0.8036,2487.8,2487.6,0.80364]
[1747765299527,44.0078,2488.1,2487.4,3.20780477]
[1747765299722,0.80354,2488.0,2487.6,0.80363]
[1747765300028,0.80356,2487.9,2487.5,0.80368]
[1747765300224,40.8,2488.1,2487.7,3.2078]
[1747765300527,3.2078,2488.4,2487.7,16.6248]
[1747765300725,2.00859,2488.3,2487.7,3.2078]
[1747765301024,0.80361,2487.8,2487.4,4.77e-06]
[1747765301326,40.8,2488.2,2487.5,13.417]
[1747765301623,4.01122,2488.4,2488.1,0.80347]
[1747765301824,3.2078,2488.4,2488.3,0.80343]
[1747765302027,0.80369,2487.5,2487.4,3.20780477]
[1747765302219,23.3228,2487.5,2486.4,0.28312159]
[1747765302420,3.21382918,2487.2,2486.4,0.28312159]
[1747765302620,0.00602918,2487.2,2486.5,3.2078]
[1747765302915,0.00602918,2487.2,2487.1,0.80382]
[1747765303417,0.00602918,2487.2,2487.1,21.930155]
[1747765303625,0.00602918,2487.2,2487.1,2.814155]
[1747765304430,0.00602918,2487.2,2487.1,2.010335]
[1747765304723,0.00602918,2487.2,2487.1,2.814155]
[1747765304926,0.00602918,2487.2,2487.1,2.010335]
[1747765305423,0.00602918,2487.2,2487.1,7.814155]
[1747765306025,3.2078,2487.9,2487.1,7.814155]
[1747765306026,3.2078,2487.9,2487.1,7.010335]
[1747765306235,3.2078,2487.9,2487.1,3.2078]
[1747765306236,3.2078,2487.6,2487.1,3.2078]
[1747765306525,5.217,2487.6,2486.8,3.5293254]
[1747765306821,0.80369,2487.5,2487.4,4.77e-06]
[1747765307027,0.80382,2487.1,2487.0,3.95e-06]
[1747765307216,4.01162,2487.1,2487.0,3.95e-06]
[1747765307423,46.822035,2487.1,2487.0,3.95e-06]
[1747765307931,51.822035,2487.1,2487.0,3.95e-06]
[1747765308326,0.80424,2485.8,2485.7,0.28312159]
[1747765308632,4.01204,2485.8,2485.7,0.28312159]
[1747765308823,6.02350501,2485.8,2485.7,0.28312159]
[1747765309019,6.02350501,2485.8,2485.7,3.09885659]
[1747765309020,3.2078,2485.8,2485.7,3.09885659]
[1747765309223,3.21382918,2486.0,2485.7,2.29458659]
[1747765309530,0.00602918,2486.0,2485.9,0.80421]
[1747765309930,0.00602918,2486.0,2485.9,7.815515]
[1747765310129,0.00602918,2486.0,2485.9,2.011305]
[1747765310431,0.00602918,2486.0,2485.9,7.815515]
[1747765310822,0.00602918,2486.0,2485.9,7.011305]
[1747765311236,0.00602918,2486.0,2485.9,7.815515]
[1747765311427,0.00602918,2486.0,2485.9,22.54134725]
[1747765311629,3.2078,2486.7,2486.6,0.80398]
[1747765311928,0.80399,2486.6,2486.3,17.3288]
[1747765312129,3.2078,2486.7,2486.3,17.3288]
[1747765312329,0.80401,2486.5,2486.3,20.14372]
[1747765312530,0.80404,2486.5,2486.3,19.33966]
[1747765312725,0.00602918,2486.6,2486.4,0.32171066]
[1747765313029,0.80401,2486.5,2486.4,0.32171066]
[1747765313223,0.80401,2486.5,2486.4,2.33257066]
[1747765313534,0.81002918,2486.6,2486.4,2.33257066]
[1747765313722,0.81002918,2486.6,2486.4,0.32171066]
[1747765313723,0.80401,2486.5,2486.4,0.32171066]
[1747765314144,2.81491001,2486.5,2486.4,0.32171066]
[1747765314437,0.80401,2486.5,2486.4,0.32171066]
[1747765314652,0.8045,2485.0,2484.6,3.2078]
[1747765314824,0.80436,2485.5,2484.9,3.2078]
[1747765315031,44.0078,2485.9,2485.4,0.29146287]
[1747765315233,0.80433,2485.6,2485.4,0.29146287]
[1747765315431,46.019345,2485.9,2485.4,0.29146287]
[1747765315632,0.80434,2485.5,2485.4,0.29146287]
[1747765315827,44.01382918,2485.9,2485.4,5.51080787]
[1747765315828,0.00602918,2485.9,2485.4,5.51080787]
[1747765316038,0.00602918,2485.9,2485.7,3.2078]
[1747765316638,0.81025918,2485.9,2485.8,17.3318]
[1747765316833,0.81023918,2485.9,2485.8,17.3318]
[1747765317140,0.00602918,2485.9,2485.8,10.21918499]
[1747765317532,0.00602918,2485.9,2485.8,5.6564229]
[1747765318239,0.81023918,2485.9,2485.8,5.6564229]
[1747765318439,0.81023918,2485.9,2485.8,19.7804229]
[1747765318938,0.00602918,2485.9,2485.8,19.7804229]
[1747765319127,0.81023918,2485.9,2485.8,19.7804229]
[1747765319325,6.02942418,2485.9,2485.8,0.43723791]
[1747765319733,11.02942418,2485.9,2485.8,7.91e-06]
[1747765319928,25.15442418,2485.9,2485.8,7.91e-06]
[1747765320136,6.02942418,2485.9,2485.8,7.91e-06]
[1747765320338,11.02942418,2485.9,2485.8,7.91e-06]
[1747765321041,2.01077,2485.7,2485.2,0.29120948]
[1747765321249,4.0122,2485.3,2485.2,0.29120948]
[1747765321738,6.02407,2485.3,2485.2,0.29120948]
[1747765321930,3.2078,2485.3,2485.2,2.30307948]
[1747765322134,0.00602918,2485.9,2485.2,10.51087948]
[1747765322338,9.956,2487.7,2486.3,0.80408]
[1747765322339,3.2078,2486.4,2486.3,0.80408]
[1747765322639,3.2078,2486.9,2486.3,14.128]
[1747765322834,2.0096,2487.1,2486.3,14.128]
[1747765322835,40.8,2487.1,2486.6,3.2078]
[1747765323039,0.80395,2486.7,2486.6,3.2078]
[1747765323441,0.00602918,2486.9,2486.6,5.218535]
[1747765323740,0.80993918,2486.9,2486.7,0.80393]
[1747765323941,0.80395,2486.7,2486.6,5.218455]
[1747765324333,2.814685,2486.7,2486.6,3.2078]
[1747765324537,0.80401,2486.5,2486.4,0.00602918]
[1747765324943,2.81491001,2486.5,2486.4,0.00602918]
[1747765325342,7.81491001,2486.5,2486.4,9.18e-06]
[1747765325539,7.81491001,2486.5,2485.4,3.2078]
[1747765325540,0.80424,2485.8,2485.4,3.2078]
[1747765325736,0.80424,2485.8,2485.3,0.01566367]
[1747765325737,2.01068,2485.8,2485.3,0.01566367]
[1747765325938,2.01068,2485.8,2484.9,1.02050308]
[1747765325939,0.8045,2485.0,2484.9,1.02050308]
[1747765326438,2.816615,2485.0,2484.9,1.02050308]
[1747765326644,0.8045,2485.0,2484.9,1.02050308]
[1747765326848,2.816615,2485.0,2484.9,1.02050308]
[1747765327145,0.00602918,2485.2,2485.1,0.80447]
[1747765327343,3.2078,2486.3,2485.5,0.80431]
[1747765327646,42.80998,2486.6,2485.7,3.2078]
[1747765327845,3.2078,2486.8,2485.8,3.2078]
[1747765328143,0.80406,2486.4,2486.1,0.80412]
[1747765328347,0.80406,2486.4,2486.3,3.2078]
[1747765328545,0.80403,2486.5,2486.3,3.2078]
[1747765328759,6.673,2486.1,2485.2,0.08486477]
[1747765329044,0.80414,2486.1,2486.0,9.18e-06]
[1747765329346,9.01194,2486.1,2486.0,9.18e-06]
[1747765329544,11.023165,2486.1,2486.0,9.18e-06]
[1747765330445,0.8044,2485.3,2485.2,2.6e-07]
[1747765330652,0.8046,2484.7,2484.6,3.87803616]
[1747765330942,4.0124,2484.7,2484.6,0.58311167]
[1747765331145,0.8046,2484.7,2484.6,2.59546667]
[1747765331350,3.2078,2484.7,2484.6,2.012355]
[1747765331548,0.80475,2484.3,2484.0,3.79091167]
[1747765331738,3.2078,2484.7,2484.1,14.819]
[1747765331942,5.21935,2484.7,2484.1,14.819]
[1747765332250,0.80479,2484.1,2484.0,0.58311167]
[1747765332743,3.2078,2484.3,2484.0,7.19595166]
[1747765332947,0.80476,2484.2,2484.1,14.822]
[1747765333241,3.2078,2484.8,2484.1,14.822]
[1747765333435,3.2078,2484.8,2484.7,0.8046]
[1747765333636,0.00602918,2484.9,2484.8,0.80456]
[1747765333840,5.21871,2485.5,2484.9,0.80452]
[1747765334041,5.21871,2485.5,2484.5,3.2078]
[1747765334241,0.8044,2485.3,2485.2,4.77e-06]
[1747765334449,4.0122,2485.3,2485.2,4.77e-06]
[1747765334643,6.02407,2485.3,2485.2,4.77e-06]
[1747765335744,6.02407,2485.3,2485.0,0.00602918]
[1747765335745,0.80447,2485.1,2485.0,3.95e-06]
[1747765336147,2.8165,2485.1,2485.0,3.95e-06]
[1747765336450,0.80447,2485.1,2485.0,10.21983395]
[1747765336655,0.00602918,2485.5,2485.4,0.80437]
[1747765336947,0.00602918,2485.5,2485.4,20.62737]
[1747765337246,0.81036918,2485.5,2485.4,21.83471]
[1747765337451,0.81036918,2485.5,2485.4,2.01171]
[1747765337750,0.81036918,2485.5,2485.4,16.83471]
[1747765338250,0.81036918,2485.5,2485.4,22.156477]
[1747765338450,0.81036918,2485.5,2485.4,15.144767]
[1747765338645,0.81036918,2485.5,2485.4,7e-06]
[1747765338646,2.82207918,2485.5,2485.4,7e-06]
[1747765339146,7.82207918,2485.5,2485.4,7e-06]
[1747765339452,0.80447,2485.1,2485.0,3.95e-06]
[1747765339651,6.0243,2485.1,2485.0,3.95e-06]
[1747765340345,0.80447,2485.1,2485.0,2.09689872]
[1747765340548,2.8165,2485.1,2485.0,0.08486872]
[1747765340755,0.80447,2485.1,2485.0,2.09689872]
[1747765341145,2.01695918,2485.5,2485.0,2.09689872]
[1747765341354,0.80447,2485.1,2485.0,0.08486872]
[1747765342056,2.8165,2485.1,2485.0,8.72e-06]
[1747765343650,7.8165,2485.1,2485.0,8.72e-06]
[1747765344354,43.6165,2485.1,2485.0,8.72e-06]
[1747765344563,48.6165,2485.1,2485.0,8.72e-06]
[1747765345553,43.6165,2485.1,2485.0,8.72e-06]
[1747765345759,2.8165,2485.1,2485.0,8.72e-06]
[1747765345959,0.80447,2485.1,2485.0,8.72e-06]
[1747765346158,0.80447,2485.1,2485.0,2.01203872]
[1747765346864,2.8165,2485.1,2485.0,8.72e-06]
[1747765347256,0.80447,2485.1,2485.0,8.72e-06]
[1747765347454,0.80447,2485.1,2485.0,2.01203872]
[1747765347866,2.8165,2485.1,2485.0,8.72e-06]
[1747765348258,7.8165,2485.1,2485.0,8.72e-06]
[1747765348761,2.8165,2485.1,2485.0,8.72e-06]
[1747765350068,0.80447,2485.1,2485.0,2.01203872]
[1747765350457,0.00602918,2485.5,2485.0,10.21983872]
[1747765350668,0.00602918,2485.5,2485.4,4.01217]
[1747765350866,0.81036918,2485.5,2485.4,14.827]
[1747765351168,0.00602918,2485.5,2485.4,16.83871]
[1747765351371,0.81036918,2485.5,2485.4,7.01171]
[1747765351675,0.81036918,2485.5,2485.4,21.83871]
[1747765351870,0.81036918,2485.5,2485.4,22.16048421]
[1747765352377,0.81036918,2485.5,2485.4,17.16048421]
[1747765353087,0.81036918,2485.5,2485.4,22.16048421]
[1747765353276,0.81036918,2485.5,2485.4,17.16048421]
[1747765354174,0.81036918,2485.5,2485.4,0.32177421]
[1747765354482,0.81036918,2485.5,2485.4,2.01171421]
[1747765354771,0.81036918,2485.5,2485.4,7.01171421]
[1747765355178,0.00602918,2485.5,2485.4,21.83771421]
[1747765355375,0.81036918,2485.5,2485.4,21.83771421]
[1747765355572,0.81036918,2485.5,2485.4,16.92257898]
[1747765355970,0.81036918,2485.5,2485.4,2.09657898]
[1747765357068,2.82207918,2485.5,2485.4,8.98e-06]
[1747765358079,0.81036918,2485.5,2485.4,2.01171898]
[1747765359082,0.81036918,2485.5,2485.4,8.98e-06]
[1747765359484,0.81036918,2485.5,2485.4,2.01171898]
[1747765359781,0.81036918,2485.5,2485.4,7.81608898]
[1747765359983,0.81036918,2485.5,2485.4,7.01171898]
[1747765360385,0.81036918,2485.5,2485.4,2.01171898]
[1747765360777,0.00602918,2485.5,2485.4,7.81608898]
[1747765361082,0.00602918,2485.5,2485.4,11.02388898]
[1747765361578,0.81036918,2485.5,2485.4,10.51165715]
[1747765361882,0.81036918,2485.5,2485.4,2.30385715]
[1747765362785,0.81036918,2485.5,2485.4,2.01171898]
[1747765364784,0.00602918,2485.5,2485.4,2.01171898]
[1747765365086,0.00602918,2485.5,2485.4,7.81608898]
[1747765365481,0.00602918,2485.5,2485.4,8.10822715]
[1747765366189,0.81036918,2485.5,2485.4,2.30385715]
[1747765366675,4.01816918,2485.5,2485.4,2.30385715]
[1747765367082,4.01816918,2485.5,2485.4,2.01171898]
[1747765367488,4.01816918,2485.5,2485.4,8.98e-06]
[1747765367985,6.02987918,2485.5,2485.4,8.98e-06]
[1747765368184,11.02987918,2485.5,2485.4,8.98e-06]
[1747765368683,51.82987918,2485.5,2485.4,8.98e-06]
[1747765369583,46.82987918,2485.5,2485.4,8.98e-06]
[1747765370291,58.50287918,2485.5,2485.4,8.98e-06]
[1747765370488,53.50287918,2485.5,2485.4,8.98e-06]
[1747765370791,53.50287918,2485.5,2484.6,15.52813817]
[1747765370792,0.8046,2484.7,2484.6,0.29213817]
[1747765371090,4.0124,2484.7,2484.6,0.29213817]
[1747765371290,6.02475501,2484.7,2484.6,8.17e-06]
[1747765371884,0.80473,2484.3,2484.2,0.80475]
[1747765372390,0.80476,2484.2,2484.1,15.237]
[1747765372688,0.80476,2484.2,2484.1,17.24972]
[1747765373291,2.81752,2484.2,2484.1,9.48e-06]
[1747765373485,0.80508,2483.2,2483.1,0.70878108]
[1747765373686,0.80518,2482.9,2482.8,0.08386092]
[1747765373990,0.80518,2482.9,2481.5,0.41009958]
[1747765373991,0.80567,2481.4,2481.0,10.04036105]
[1747765374188,4.01347,2481.4,2481.3,7.94026634]
[1747765374386,26.26750001,2481.4,2481.3,4.91252634]
[1747765374585,51.82850001,2481.4,2481.3,4.91252634]
[1747765374783,53.50150001,2481.4,2481.3,4.91252634]
[1747765374988,46.82850001,2481.4,2481.3,4.91252634]
[1747765375192,46.82850001,2481.4,2481.3,4.09826634]
[1747765375495,51.82850001,2481.4,2481.3,2.21715634]
[1747765375985,51.82850001,2481.4,2481.0,4.53354737]
[1747765375986,0.80576,2481.1,2481.0,4.53354737]
[1747765376181,19.97956,2481.1,2481.0,3.40499737]
[1747765376484,6.028835,2481.1,2481.0,3.40499737]
[1747765376680,11.028835,2481.1,2481.0,3.40499737]
[1747765376882,6.028835,2481.1,2481.0,3.40499737]
[1747765377085,5.223075,2481.1,2481.0,3.40499737]
[1747765377690,5.223075,2481.1,2481.0,6.69992186]
[1747765377889,5.223075,2481.1,2480.5,15.974]
[1747765378192,40.8,2481.4,2480.5,20.07488449]
[1747765378193,3.2078,2480.6,2480.5,20.07488449]
[1747765378386,0.00604144,2481.6,2480.0,0.01956538]
[1747765378387,3.12067551,2481.3,2480.4,3.2078]
[1747765378594,4.01351,2481.3,2480.5,16.77996]
[1747765378788,3.2078,2481.3,2480.6,15.974]
[1747765378990,3.2078,2481.3,2480.7,3.2078]
[1747765379190,3.2078,2481.3,2480.8,0.80585]
[1747765379400,3.2078,2481.3,2480.7,15.974]
[1747765379590,3.2078,2481.3,2480.7,19.1818]
[1747765379789,0.00604144,2481.6,2481.0,3.2078]
[1747765379790,3.21384144,2481.6,2481.0,3.2078]
[1747765380098,3.21384144,2481.6,2481.3,0.8057]
[1747765380396,3.21384144,2481.6,2481.1,15.979]
[1747765380694,2.01314,2482.7,2481.1,15.979]
[1747765380695,3.2078,2482.2,2481.5,0.80564]
[1747765380994,3.2078,2482.3,2481.7,3.2078]
[1747765381195,2.01331,2482.5,2481.5,15.979]
[1747765381383,3.2078,2481.6,2480.6,3.2078]
[1747765381787,0.00604144,2481.3,2480.9,3.21384144]
[1747765381988,0.00604144,2481.3,2480.9,0.00604144]
[1747765382188,2.82697644,2481.3,2480.9,0.00604144]
[1747765382392,2.82699644,2481.3,2480.9,0.00604144]
[1747765382590,2.02127644,2481.3,2481.0,3.2078]
[1747765382789,0.80574,2481.2,2480.9,3.21384144]
[1747765382990,2.02127644,2481.3,2480.9,0.00604144]
[1747765383397,0.8058,2481.0,2480.9,0.00604144]
[1747765383900,0.80599,2480.4,2480.0,16.00256538]
[1747765384098,0.80599,2480.4,2480.0,0.01956538]
[1747765384287,3.2078,2480.5,2480.0,0.01956538]
[1747765384288,0.80604,2480.3,2480.0,0.01956538]
[1747765384592,3.2078,2480.9,2480.2,3.2078]
[1747765384797,5.223565,2480.9,2480.0,0.01956538]
[1747765384993,3.2078,2480.5,2480.0,0.01956538]
[1747765385493,3.2078,2481.0,2480.4,0.80598]
[1747765385695,5.223525,2481.0,2480.1,0.80608]
[1747765385895,0.80592,2480.7,2480.2,0.80604]
[1747765386193,3.2078,2480.6,2480.0,3.22736538]
[1747765386386,3.2078,2480.7,2480.0,3.22736538]
[1747765386586,0.80601,2480.4,2480.0,4.03347538]
[1747765386805,2.01483,2480.6,2480.0,0.01956538]
[1747765387094,2.01483,2480.6,2478.3,0.4]
[1747765387095,3.2078,2479.8,2478.3,0.4]
[1747765387298,3.2078,2478.6,2477.8,16.708]
[1747765387492,3.2078,2478.6,2477.6,3.2078]
[1747765387493,3.2078,2478.2,2477.6,3.2078]
[1747765387702,3.2078,2478.6,2477.8,3.2078]
[1747765387897,0.31549112,2480.6,2478.4,3.2078]
[1747765387898,3.2078,2479.4,2478.4,3.2078]
[1747765388097,3.2078,2479.7,2479.2,0.80638]
[1747765388599,40.8,2480.5,2479.2,0.80638]
[1747765388600,3.2078,2479.4,2479.2,2.01674]
[1747765388787,0.80643,2479.1,2478.6,16.714]
[1747765388988,0.00604144,2479.3,2478.8,3.2078]
[1747765389198,0.00604144,2479.3,2479.2,0.80638]
[1747765389401,0.00604144,2479.3,2479.2,4.01418]
[1747765389601,3.2078,2479.9,2479.2,10.22454]
[1747765389798,3.2078,2480.0,2479.3,3.2078]
[1747765389992,2.01447,2481.1,2479.8,3.2078]
[1747765389993,3.2078,2480.4,2479.8,3.2078]
[1747765390300,3.2078,2480.4,2479.5,2.01572]
[1747765390301,3.2078,2480.4,2479.5,16.714]
[1747765390489,3.2078,2480.4,2478.6,2.01645]
[1747765390490,3.2078,2479.9,2478.6,2.01645]
[1747765390687,0.00604144,2479.5,2479.4,0.80632]
[1747765390889,0.00604144,2479.5,2479.1,3.2078]
[1747765390890,0.00604144,2479.5,2479.2,16.714]
[1747765391103,3.2078,2480.2,2479.2,16.714]
[1747765391303,3.2078,2480.2,2480.1,0.80609]
[1747765391598,40.612,2481.4,2480.1,0.80609]
[1747765391599,3.2078,2481.2,2480.1,2.01522]
[1747765391895,3.2078,2481.5,2480.6,5.22256]
[1747765392096,3.2078,2481.5,2481.3,0.08486477]
[1747765392297,0.81165144,2481.6,2481.3,0.08486477]
[1747765392594,3.21384144,2481.6,2481.3,0.08486477]
[1747765392799,5.22879144,2481.6,2481.3,0.08486477]
[1747765392994,0.80566,2481.5,2481.3,0.08486477]
[1747765393200,5.22879144,2481.6,2481.3,0.08486477]
[1747765393702,6.03441144,2481.6,2481.3,0.08486477]
[1747765393901,5.22879144,2481.6,2481.3,0.08486477]
[1747765394495,5.22879144,2481.6,2481.4,0.80567]
[1747765394690,3.21384144,2481.6,2481.3,0.08486477]
[1747765394897,0.00604144,2481.6,2481.5,0.80564]
[1747765395397,0.00604144,2481.6,2481.5,2.82051]
[1747765396195,0.00604144,2481.6,2481.5,7.82051]
[1747765396897,3.2078,2482.0,2481.9,0.80551]
[1747765397101,3.2078,2482.4,2481.9,2.014545]
[1747765397404,3.2078,2482.4,2482.2,0.80539]
[1747765397606,3.2078,2482.4,2482.3,0.80538]
[1747765397996,3.2078,2482.4,2482.3,2.8196]
[1747765399595,0.00604144,2482.6,2482.5,0.80531]
[1747765399793,3.2078,2483.2,2483.1,0.80512]
[1747765400102,3.2078,2483.2,2483.0,0.80513]
[1747765400398,3.2078,2483.2,2482.6,2.0132]
[1747765400699,3.2078,2483.2,2482.5,3.2078]
[1747765400899,0.00604144,2483.1,2482.9,0.80518]
[1747765401102,3.2078,2483.0,2482.8,0.8052]
[1747765401304,3.2078,2483.0,2482.9,0.80518]
[1747765401503,3.2078,2483.0,2482.8,0.8052]
[1747765401997,3.2078,2483.0,2482.8,2.818975]
[1747765402197,0.80518,2482.9,2482.2,5.22126]
[1747765402502,0.80519,2482.9,2482.6,17.51626]
[1747765402700,4.01297,2483.0,2482.7,0.80524]
[1747765402904,3.2078,2483.0,2482.9,0.80518]
[1747765403296,0.00604144,2483.1,2483.0,0.80515]
[1747765403498,0.00604144,2483.1,2483.0,2.818805]
[1747765403697,0.00604144,2483.1,2483.0,2.013655]
[1747765404003,2.01969644,2483.1,2482.9,0.80517]
[1747765404201,0.00604144,2483.1,2482.9,0.80517]
[1747765404391,5.22753644,2483.1,2483.0,0.80515]
[1747765404707,0.00604144,2483.1,2482.9,0.80517]
[1747765404896,3.21384144,2483.1,2482.6,16.711]
[1747765405201,0.00604144,2483.1,2483.0,0.80515]
[1747765405700,0.00604144,2483.1,2483.0,2.818805]
[1747765406294,0.00604144,2483.1,2483.0,7.818805]
[1747765406497,3.2078,2483.6,2483.5,0.80499]
[1747765406705,3.2078,2484.0,2483.3,2.01264]
[1747765406905,0.80491,2483.8,2483.6,0.80494]
[1747765407106,3.2078,2483.7,2483.6,0.80494]
[1747765407299,5.220845,2484.0,2483.2,16.708]
[1747765407514,4.01264,2484.0,2483.5,2.01241]
[1747765407702,0.00604144,2483.8,2483.7,0.80489]
[1747765408099,0.00604144,2483.8,2483.7,19.522975]
[1747765409703,0.00604144,2483.8,2483.7,19.519975]
[1747765410195,2.01912644,2483.8,2483.7,0.80492]
[1747765410598,0.00604144,2483.8,2483.7,2.818005]
[1747765412002,2.01912644,2483.8,2483.4,20.72084144]
[1747765412300,3.2078,2483.6,2483.4,16.70804144]
[1747765412507,0.80497,2483.6,2483.4,16.70804144]
[1747765412706,0.80497,2483.6,2483.4,18.72133144]
[1747765413010,0.00604144,2483.8,2483.5,0.80497]
[1747765413011,0.80495,2483.7,2483.5,0.80497]
[1747765413709,0.00604144,2483.8,2483.7,0.80492]
[1747765414101,0.00604144,2483.8,2483.7,2.818005]
[1747765416413,0.00604144,2483.8,2483.7,19.59986977]
[1747765416706,0.00604144,2483.8,2483.7,18.79494977]
[1747765416912,0.00604144,2483.8,2483.7,19.59986977]
[1747765417208,2.82401644,2483.8,2483.7,0.08486477]
[1747765417513,0.81093144,2483.8,2483.7,0.08486477]
[1747765417810,2.01912644,2483.8,2483.7,0.08486477]
[1747765418109,0.00604144,2483.8,2483.7,0.88978477]
[1747765418408,2.01912644,2483.8,2483.7,0.88978477]
[1747765418608,0.00604144,2483.8,2483.7,2.90286977]
[1747765418802,0.00604144,2483.8,2483.7,0.88978477]
[1747765419000,1.44e-06,2483.8,2483.7,7.90286977]
[1747765419805,1.44e-06,2483.8,2483.7,19.23586977]
[1747765420707,1.44e-06,2483.8,2483.7,24.23586977]
[1747765422314,1.44e-06,2483.8,2483.7,24.55781378]
[1747765423514,1.44e-06,2483.8,2483.7,24.98602433]
[1747765424407,1.44e-06,2483.8,2483.7,38.57102433]
[1747765424815,1.44e-06,2483.8,2483.7,38.56702433]
[1747765425517,1.44e-06,2483.8,2483.7,19.98202433]
[1747765426809,1.44e-06,2483.8,2483.7,24.98202433]
[1747765427009,3.05480144,2484.4,2484.3,0.80473]
[1747765427209,3.2078,2484.8,2484.7,0.80458]
[1747765427404,5.22036,2484.8,2484.7,0.80458]
[1747765427603,10.22036,2484.8,2484.7,0.80458]
[1747765427821,10.220075,2484.8,2484.7,0.80458]
[1747765428117,10.220075,2484.8,2484.4,2.01173]
[1747765428419,5.220075,2484.8,2484.2,18.34087]
[1747765428620,5.220075,2484.8,2484.3,2.01183]
[1747765428920,5.220075,2484.8,2484.7,0.8046]
[1747765428921,6.024665,2484.8,2484.7,0.8046]
[1747765429421,11.024665,2484.8,2484.3,2.01183]
[1747765429719,5.220075,2484.8,2484.7,0.8046]
[1747765434516,2.012275,2484.8,2484.7,0.8046]
[1747765435117,5.220075,2484.8,2484.7,0.8046]
[1747765435722,3.2078,2484.8,2484.7,0.8046]
[1747765435920,5.220075,2484.8,2484.7,0.8046]
[1747765436320,5.220075,2484.8,2484.7,1.12648037]
[1747765437726,2.012275,2484.8,2484.7,1.12648037]
[1747765438416,6.024645,2484.8,2484.7,1.12648037]
[1747765438727,5.220075,2484.8,2484.7,1.12648037]
[1747765439823,0.00386434,2485.0,2484.9,0.80454]
[1747765440023,2.01605934,2485.0,2484.9,0.80454]
[1747765440425,2.01605934,2485.0,2484.7,0.32792181]
[1747765440625,0.80456,2484.9,2484.7,0.32792181]
[1747765440823,2.01605934,2485.0,2484.9,0.80454]
[1747765441229,2.01605934,2485.0,2484.9,1.12642037]
[1747765441427,0.00386434,2485.0,2484.9,1.12642037]
[1747765441929,0.00386434,2485.0,2484.9,3.13853537]